bitfinex-derivatives/quotes_ETHF0:USTF0_20241207
["timestamp","ask_amount","ask_price","bid_price","bid_amount"]
[1733572342780,0.17482,3999.4,3999.2,41.38923]
[1733572342977,0.17483,3999.3,3999.2,41.2144]
[1733572343682,0.3776,3999.6,3999.2,41.2144]
[1733572344270,0.17483,3999.3,3999.2,41.2144]
[1733572345277,0.17482,3999.4,3999.2,0.58923]
[1733572345874,0.3776,3999.6,3999.2,0.58923]
[1733572345875,0.17482,3999.5,3999.2,0.58923]
[1733572346086,0.17482,3999.4,3999.2,0.58923]
[1733572346485,0.17482,3999.4,3999.2,0.4144]
[1733572346685,0.3776,3999.6,3999.2,0.4144]
[1733572346979,0.17483,3999.3,3999.2,0.58923]
[1733572347184,0.17483,3999.3,3999.2,0.4144]
[1733572351382,0.17482,3999.4,3999.2,0.58923]
[1733572351779,0.17483,3999.3,3999.2,0.58923]
[1733572351974,0.17483,3999.3,3999.2,0.4144]
[1733572352380,0.17482,3999.4,3999.2,0.4144]
[1733572352688,2.39106162,3999.9,3999.2,0.4144]
[1733572352881,1.0544,3999.9,3999.2,0.58923]
[1733572353182,0.17483,3999.3,3999.2,0.58923]
[1733572353884,0.1748,3999.8,3999.2,0.58922]
[1733572354185,1.0544,3999.9,3999.2,0.58922]
[1733572354383,0.17482,3999.3,3999.2,0.4144]
[1733572354891,0.1748,3999.8,3999.2,0.58923]
[1733572355089,0.17482,3999.3,3999.2,0.58923]
[1733572355490,0.17482,3999.3,3999.2,0.4144]
[1733572358390,0.17482,3999.4,3999.2,0.58923]
[1733572358986,0.17482,3999.3,3999.2,0.58923]
[1733572359190,0.17482,3999.4,3999.2,0.4144]
[1733572359381,0.17482,3999.4,3999.3,0.17482]
[1733572359585,0.17482,3999.4,3999.2,0.58923]
[1733572359785,0.89965162,3999.7,3999.2,0.4144]
[1733572359988,0.17482,3999.3,3999.2,0.58923]
[1733572360381,0.89965162,3999.7,3999.2,0.4144]
[1733572360783,0.17482,3999.4,3999.3,0.17482]
[1733572360983,0.89965162,3999.7,3999.2,0.4144]
[1733572361188,0.17482,3999.3,3999.2,0.58923]
[1733572361790,2.94019147,3999.9,3999.2,0.4144]
[1733572361989,3.2078,4000.1,3999.7,0.89965162]
[1733572362200,0.1748,4000.0,3999.9,0.17479]
[1733572364891,0.1748,4000.0,3999.9,0.1748]
[1733572365496,0.1748,4000.0,3999.9,0.31598993]
[1733572365688,0.89965162,4000.4,3999.8,1.3188]
[1733572365689,0.1748,3999.9,3999.8,1.3188]
[1733572365990,0.1748,3999.9,3999.8,1.144]
[1733572366189,0.1748,3999.9,3999.8,1.28520756]
[1733572366394,0.1748,3999.9,3999.8,0.7682]
[1733572372800,0.4075,4000.0,3999.5,3.89512948]
[1733572373002,0.17481,3999.6,3999.5,4.69952948]
[1733572373896,0.17481,3999.6,3999.5,0.8044]
[1733572374401,0.17481,3999.6,3999.5,0.4071]
[1733572374698,4.09674132,3999.6,3999.5,0.4071]
[1733572375502,0.17481,3999.6,3999.5,0.4071]
[1733572376796,0.17482,3999.3,3999.2,0.3973]
[1733572377393,4.10547552,3999.4,3999.2,0.57213]
[1733572377603,0.17482,3999.3,3999.2,0.3973]
[1733572378097,3.93065552,3999.5,3999.2,0.3973]
[1733572378299,2.94833948,3999.3,3999.2,0.57213]
[1733572378903,3.12315948,3999.3,3999.2,0.57213]
[1733572379099,2.94833948,3999.3,3999.2,0.57213]
[1733572379298,3.12315948,3999.4,3999.3,0.17482]
[1733572379501,2.94833948,3999.4,3999.3,0.17482]
[1733572379701,0.17482,3999.4,3999.3,0.17482]
[1733572380399,3.93065552,3999.6,3999.2,0.3973]
[1733572380610,3.12328951,3999.3,3999.2,0.57213]
[1733572380803,0.17482,3999.3,3999.2,16.44877394]
[1733572381001,0.17482,3999.3,3999.2,16.59000278]
[1733572382305,0.17482,3999.3,3999.2,15.69035116]
[1733572383299,6.15626951,4000.0,3999.2,15.51552116]
[1733572383496,6.15626951,4000.4,3999.8,0.89965162]
[1733572383696,3.2078,4000.4,4000.3,4.08173219]
[1733572383896,0.55756,4000.8,4000.7,0.17476]
[1733572384096,0.3828,4000.8,4000.7,5.16358809]
[1733572384412,3.38256,4000.9,4000.8,0.17476]
[1733572384610,3.38256,4000.9,4000.8,5.16086221]
[1733572384807,3.38256,4000.9,4000.8,11.01966486]
[1733572385304,3.38256,4000.9,4000.8,4.98610221]
[1733572385507,3.2078,4000.9,4000.7,6.81296265]
[1733572385702,0.17476,4000.8,4000.7,6.81296265]
[1733572386007,0.17476,4000.8,4000.7,11.796115]
[1733572386204,3.38256,4000.9,4000.8,0.17476]
[1733572386409,3.38256,4000.9,4000.8,4.07441441]
[1733572386602,3.38256,4000.9,4000.8,4.45491441]
[1733572386902,3.38256,4000.9,4000.8,4.28015441]
[1733572387409,3.38256,4000.9,4000.8,0.3805]
[1733572387805,3.2078,4000.9,4000.7,4.67783739]
[1733572388197,0.17476,4000.8,4000.7,4.67783739]
[1733572388398,0.17476,4000.8,4000.7,0.7794]
[1733572390708,3.2078,4000.9,4000.1,3.89843739]
[1733572390898,0.3961,4000.7,4000.3,0.17478]
[1733572391104,0.17477,4000.5,4000.2,0.95938]
[1733572391300,0.17477,4000.5,4000.2,0.7846]
[1733572391504,0.3922,4000.6,4000.2,0.7846]
[1733572391706,0.17478,4000.4,4000.2,0.95938]
[1733572392306,0.56697,4000.6,4000.3,0.17478]
[1733572392609,0.17477,4000.5,4000.2,0.95938]
[1733572393008,0.3922,4000.6,4000.2,0.7846]
[1733572393210,0.17478,4000.3,4000.2,0.7846]
[1733572393800,0.3922,4000.6,4000.2,0.7846]
[1733572394212,0.56697,4000.6,4000.4,0.17477]
[1733572394611,0.3922,4000.6,4000.3,0.89965162]
[1733572394807,0.17477,4000.5,4000.3,1.07443162]
[1733572395010,0.17477,4000.7,4000.5,0.17477]
[1733572395313,3.6174,4000.9,4000.3,0.89965162]
[1733572395510,0.17477,4000.6,4000.4,0.17477]
[1733572395706,0.17476,4000.8,4000.6,0.17477]
[1733572395904,0.17476,4000.8,4000.7,0.4134]
[1733572397320,3.2078,4000.9,4000.7,0.4134]
[1733572397510,3.38256,4000.9,4000.8,0.3847]
[1733572397709,3.38256,4000.9,4000.8,0.55946]
[1733572397912,3.38256,4000.9,4000.8,0.3847]
[1733572398312,3.38256,4000.9,4000.8,0.55946]
[1733572398512,3.38256,4000.9,4000.8,0.95286]
[1733572398712,0.17476,4000.9,4000.8,0.95286]
[1733572399517,0.17476,4000.9,4000.8,0.7781]
[1733572400422,0.89965162,4000.9,4000.4,3.2078]
[1733572400920,0.89965162,4000.9,4000.4,3.38257]
[1733572401219,0.17477,4000.5,4000.4,3.2078]
[1733572403617,0.17478,4000.3,4000.2,1.1939]
[1733572404118,0.17478,4000.4,4000.2,1.36868]
[1733572404324,0.3986,4000.7,4000.2,1.1939]
[1733572404623,0.17478,4000.4,4000.2,1.36869]
[1733572405121,0.17478,4000.4,4000.3,0.17478]
[1733572406119,0.17478,4000.4,4000.2,1.36868]
[1733572406717,0.17477,4000.5,4000.3,0.17478]
[1733572407124,0.3986,4000.7,4000.2,1.1939]
[1733572407422,0.17477,4000.6,4000.4,0.17477]
[1733572407617,0.57337,4000.7,4000.5,0.17477]
[1733572407926,0.17477,4000.6,4000.4,0.17477]
[1733572408413,0.17477,4000.5,4000.4,0.17477]
[1733572409016,3.2078,4001.1,4000.3,0.89965162]
[1733572409217,0.17476,4000.8,4000.7,0.17476]
[1733572409521,0.3997,4001.0,4000.7,40.8]
[1733572409723,0.17476,4000.9,4000.7,40.97476]
[1733572410020,0.17476,4000.9,4000.8,0.4019]
[1733572410220,0.3997,4001.0,4000.8,0.4019]
[1733572410426,0.17475,4001.1,4000.9,4.10745162]
[1733572410725,0.17474,4001.2,4001.1,0.17474]
[1733572410921,3.11754362,4001.2,4001.0,0.17475]
[1733572411226,0.17474,4001.2,4001.1,0.17474]
[1733572411417,0.17475,4001.1,4001.0,0.17475]
[1733572412320,0.17475,4001.2,4001.1,0.17474]
[1733572413231,0.57444,4001.3,4001.2,0.17474]
[1733572413930,2.94279362,4001.4,4000.9,4.49535162]
[1733572413931,3.11752362,4001.4,4001.3,0.17474]
[1733572414334,0.17473,4001.4,4001.3,0.17474]
[1733572414921,2.94279362,4001.5,4000.9,1.28755162]
[1733572415129,2.94279362,4001.4,4000.9,1.28755162]
[1733572415432,0.17474,4001.3,4001.2,0.17474]
[1733572415632,0.17474,4001.3,4001.2,1.07439162]
[1733572415827,2.94279362,4001.9,4001.2,0.89965162]
[1733572416027,3.11750362,4001.9,4001.8,1.07437162]
[1733572416223,3.11750362,4002.0,4001.9,0.17471]
[1733572417121,0.17471,4002.0,4001.9,0.17471]
[1733572417525,3.11749362,4002.1,4002.0,0.17471]
[1733572417926,2.94279362,4002.1,4002.0,0.17471]
[1733572418327,2.94279362,4002.6,4002.0,0.89965162]
[1733572418527,6.15059362,4002.8,4002.5,0.89965162]
[1733572418727,6.15059362,4002.8,4002.7,0.17468]
[1733572418728,3.2078,4002.8,4002.7,0.17468]
[1733572419231,0.23518,4003.0,4002.6,0.7948]
[1733572419630,0.23518,4003.0,4002.9,0.17467]
[1733572420033,0.23518,4003.0,4002.6,0.7948]
[1733572420235,0.17467,4002.9,4002.8,0.17467]
[1733572420732,0.23518,4003.0,4002.7,0.17468]
[1733572420940,0.17467,4002.9,4002.7,0.17468]
[1733572421236,0.17467,4002.9,4002.8,0.17467]
[1733572421534,0.40985,4003.0,4002.8,0.17467]
[1733572422035,0.40985,4003.0,4002.7,0.17467]
[1733572422342,0.40985,4003.0,4002.6,0.7948]
[1733572422343,0.23518,4003.0,4002.8,0.17467]
[1733572423237,0.23518,4003.0,4002.6,0.7948]
[1733572424130,0.23518,4003.0,4002.9,0.17467]
[1733572427241,0.23518,4003.0,4002.9,3.38247]
[1733572430042,0.23518,4003.0,4002.9,44.18247]
[1733572430543,0.23518,4003.0,4002.9,3.38247]
[1733572432446,0.40984,4003.0,4002.9,3.38247]
[1733572432944,0.23518,4003.0,4002.9,3.38247]
[1733572434046,0.17466,4003.2,4003.1,0.17466]
[1733572434547,0.17466,4003.1,4003.0,0.57416]
[1733572439253,0.83369,4003.7,4003.0,0.3995]
[1733572439641,0.17466,4003.1,4003.0,0.57416]
[1733572440451,0.83369,4003.7,4003.0,0.3995]
[1733572440652,0.83369,4003.7,4003.1,0.17465]
[1733572440653,0.17466,4003.2,4003.1,0.17465]
[1733572441450,0.17465,4003.3,4003.2,0.17465]
[1733572441744,0.3971,4003.7,4003.0,0.3995]
[1733572442046,3.2078,4004.0,4003.2,1.94668119]
[1733572442250,3.2078,4004.0,4003.6,1.94668119]
[1733572442444,0.17463,4003.9,4003.8,0.17462]
[1733572442645,0.17463,4003.9,4003.8,1.07246689]
[1733572443144,0.17463,4003.9,4003.8,1.07247689]
[1733572444344,3.2078,4004.0,4003.8,0.89784689]
[1733572444655,3.38242,4004.0,4003.9,0.17462]
[1733572444850,0.17462,4004.0,4003.9,0.17462]
[1733572445051,3.2078,4004.5,4003.8,0.89784689]
[1733572445256,0.57083,4003.9,4003.8,0.17463]
[1733572445452,3.2078,4004.5,4003.8,0.89784689]
[1733572445652,0.57251,4004.3,4004.2,0.89784689]
[1733572445952,0.3979,4004.3,4004.2,1.07245689]
[1733572446158,0.1746,4004.5,4004.4,0.1746]
[1733572446851,0.3979,4004.8,4004.3,1.1546]
[1733572447052,0.3979,4004.8,4004.7,4.28023689]
[1733572447651,0.17458,4005.0,4004.9,0.17458]
[1733572448358,0.26744,4005.1,4004.7,4.10564689]
[1733572448556,0.26744,4005.1,4004.7,3.2078]
[1733572448761,0.26744,4005.1,4004.3,1.3292]
[1733572448762,0.1746,4004.4,4004.3,1.3292]
[1733572448966,0.1746,4004.4,4004.1,3.2078]
[1733572448967,0.17461,4004.2,4004.1,3.38241]
[1733572449261,0.3918,4004.9,4004.1,3.2078]
[1733572449454,0.3771,4004.7,4004.1,3.2078]
[1733572449651,0.17461,4004.2,4004.1,3.2078]
[1733572450566,0.4121,4004.5,4004.3,0.1746]
[1733572450763,0.4121,4004.5,4004.1,3.2078]
[1733572450764,0.17461,4004.4,4004.2,0.56161]
[1733572451266,0.17461,4004.4,4004.2,0.387]
[1733572451652,0.17461,4004.4,4004.2,0.56161]
[1733572451858,0.4121,4004.5,4004.2,0.387]
[1733572452070,0.5867,4004.5,4004.3,0.1746]
[1733572452266,0.1746,4004.4,4004.2,0.387]
[1733572452474,0.1746,4004.4,4004.2,0.56161]
[1733572452777,0.4121,4004.5,4004.2,0.387]
[1733572453074,0.4121,4004.5,4004.2,0.56161]
[1733572453274,0.5867,4004.5,4004.3,0.17461]
[1733572453676,0.3771,4004.7,4004.3,0.17461]
[1733572453971,0.3771,4004.7,4004.2,0.56161]
[1733572454177,0.1746,4004.4,4004.2,0.387]
[1733572454378,0.1746,4004.4,4004.2,0.56161]
[1733572455267,0.3771,4004.7,4004.3,40.8]
[1733572455473,0.1746,4004.4,4004.3,40.8]
[1733572455873,0.17459,4004.6,4004.3,40.9746]
[1733572456081,0.3771,4004.7,4004.3,40.8]
[1733572456273,0.1746,4004.5,4004.3,40.97461]
[1733572456775,0.1746,4004.4,4004.3,40.8]
[1733572457077,0.3771,4004.7,4004.2,0.387]
[1733572457479,0.17461,4004.4,4004.2,0.56161]
[1733572457779,0.17461,4004.4,4004.3,40.8]
[1733572458175,0.17461,4004.4,4004.2,0.56161]
[1733572458583,0.17461,4004.4,4004.2,41.36161]
[1733572458777,0.3771,4004.7,4004.2,41.187]
[1733572459082,0.3771,4004.7,4004.3,0.1746]
[1733572459083,0.1746,4004.5,4004.3,0.1746]
[1733572459575,0.3771,4004.7,4004.1,3.2078]
[1733572459576,0.17461,4004.2,4004.1,3.2078]
[1733572461977,0.3771,4004.7,4004.1,3.2078]
[1733572462179,0.1746,4004.4,4004.1,3.2078]
[1733572462777,0.3771,4004.7,4004.1,3.2078]
[1733572462980,0.17461,4004.3,4004.1,3.2078]
[1733572463379,0.4035,4004.2,4004.1,3.2078]
[1733572464581,0.4035,4004.2,4004.1,3.38241]
[1733572465783,2.94279362,4004.4,4004.3,0.17461]
[1733572465979,2.94279362,4004.5,4004.2,1.94440119]
[1733572466287,3.11739362,4004.5,4004.4,0.1746]
[1733572466486,3.11739362,4004.5,4004.3,0.1746]
[1733572466879,2.94279362,4004.4,4004.3,0.1746]
[1733572467279,3.11739362,4004.4,4004.3,0.1746]
[1733572468288,2.94279362,4004.4,4004.3,0.1746]
[1733572469280,2.94279362,4004.4,4004.3,0.17461]
[1733572469486,0.4055,4004.6,4004.5,0.1746]
[1733572470685,0.4055,4004.6,4004.5,1.07214571]
[1733572473094,0.58009,4004.6,4004.5,1.07214571]
[1733572473683,0.58009,4004.6,4004.5,0.89754571]
[1733572473887,0.58009,4004.6,4004.5,1.07214571]
[1733572474281,0.58009,4004.6,4004.5,0.89754571]
[1733572474489,0.4055,4004.6,4004.5,1.07214571]
[1733572475286,0.58009,4004.6,4004.5,1.07214571]
[1733572476086,0.4055,4004.6,4004.5,1.07214571]
[1733572476485,0.58537,4005.1,4005.0,0.17458]
[1733572476796,0.4108,4005.1,4005.0,1.07212571]
[1733572479091,3.35519362,4005.6,4005.0,1.07212571]
[1733572479092,0.17457,4005.3,4005.2,0.17457]
[1733572479297,5.07922603,4005.3,4005.2,0.17457]
[1733572479500,5.29765603,4005.4,4005.1,0.3971]
[1733572479692,0.56756,4005.4,4005.3,1.07210571]
[1733572480898,0.56756,4005.4,4005.3,0.89754571]
[1733572483201,0.58131256,4005.4,4005.3,0.89754571]
[1733572485199,5.31140859,4005.4,4005.3,1.07210571]
[1733572485601,0.58131256,4005.4,4005.3,0.89754571]
[1733572485797,0.58131256,4005.4,4005.3,1.07210571]
[1733572486017,0.01375256,4005.4,4005.3,1.07210571]
[1733572497516,0.01375256,4005.4,4005.3,1.96965142]
[1733572498017,0.01375256,4005.4,4005.3,2.110119]
[1733572498414,3.91852425,4006.1,4006.0,0.17453]
[1733572498415,2.93889318,4006.1,4006.0,0.17453]
[1733572499815,2.93889318,4006.2,4005.3,3.2078]
[1733572500015,2.93889318,4005.4,4005.0,0.89754571]
[1733572500216,2.93564851,4005.1,4004.5,3.2078]
[1733572500412,2.93564851,4005.1,4005.0,3.38238]
[1733572500713,4.90465603,4005.6,4005.0,3.38238]
[1733572500714,3.11019851,4005.6,4005.1,0.17457]
[1733572500914,3.11019851,4005.7,4005.5,0.17455]
[1733572501116,0.17455,4005.7,4005.6,0.89754571]
[1733572502021,0.3813,4005.8,4005.7,0.17455]
[1733572502218,3.589,4006.4,4005.6,1.79509142]
[1733572502415,0.17454,4005.9,4005.7,0.95254]
[1733572503522,0.17454,4005.8,4005.7,0.778]
[1733572503719,0.3815,4005.8,4005.5,3.2078]
[1733572503910,0.17455,4005.6,4005.5,3.2078]
[1733572504116,0.17455,4005.6,4005.5,4.10534571]
[1733572504520,0.17455,4005.6,4005.5,3.2078]
[1733572504819,0.17456,4005.3,4005.2,0.89754571]
[1733572506514,6.57933877,4005.6,4004.7,1.94430672]
[1733572506718,0.17459,4004.8,4004.7,1.94430672]
[1733572509023,0.414,4005.2,4004.8,0.17458]
[1733572509024,0.17458,4005.0,4004.8,0.17458]
[1733572509317,0.414,4005.2,4004.8,0.17458]
[1733572509514,0.17458,4005.0,4004.8,0.17458]
[1733572510431,0.17458,4004.8,4004.7,1.94430672]
[1733572510720,0.414,4005.2,4004.5,3.8598]
[1733572510721,0.414,4005.2,4004.5,3.2078]
[1733572510922,0.17459,4004.6,4004.5,3.2078]
[1733572512619,0.8124,4004.7,4004.3,42.74430672]
[1733572512620,0.1746,4004.4,4004.3,42.74430672]
[1733572512823,0.8124,4004.7,4004.2,0.4089]
[1733572513022,0.17461,4004.3,4004.2,0.4089]
[1733572513324,0.17461,4004.3,4004.2,41.2089]
[1733572514724,0.17461,4004.3,4004.2,40.8]
[1733572515022,0.17461,4004.3,4004.0,3.2078]
[1733572515023,3.74904132,4004.7,4004.0,3.2078]
[1733572515220,0.17461,4004.1,4004.0,3.2078]
[1733572515524,0.58921,4004.1,4004.0,3.2078]
[1733572516428,3.52585132,4004.1,4004.0,3.2078]
[1733572517221,0.58921,4004.1,4004.0,3.2078]
[1733572517522,0.43651,4004.5,4004.0,3.2078]
[1733572517523,2.93664132,4004.3,4004.0,3.2078]
[1733572517722,5.87328264,4005.2,4004.2,1.94430672]
[1733572517723,2.93664132,4004.6,4004.2,1.94430672]
[1733572517919,3.11123132,4004.8,4004.7,0.17459]
[1733572518125,3.11123132,4004.8,4004.7,40.97459]
[1733572518526,0.17459,4004.8,4004.7,40.97459]
[1733572518729,3.11123132,4004.8,4004.7,40.8]
[1733572518923,0.17459,4004.8,4004.7,40.97459]
[1733572519236,0.17459,4004.8,4004.6,3.9827]
[1733572519237,2.93664132,4004.9,4004.6,3.9827]
[1733572519417,2.93664132,4004.9,4004.8,0.17458]
[1733572519617,2.93664132,4005.1,4004.9,0.17458]
[1733572519821,0.17457,4005.1,4005.0,43.29457672]
[1733572520023,0.17457,4005.1,4005.0,2.49457672]
[1733572520230,0.17457,4005.1,4005.0,2.32000672]
[1733572520528,0.17457,4005.1,4005.0,2.49458672]
[1733572520724,0.17457,4005.1,4005.0,0.3757]
[1733572520922,2.93664132,4005.1,4004.6,5.92700672]
[1733572521126,2.93664132,4005.1,4004.6,6.30270672]
[1733572521428,0.3818,4005.2,4004.8,0.17458]
[1733572521429,0.17458,4004.9,4004.8,0.17458]
[1733572522725,0.17458,4005.0,4004.9,0.17458]
[1733572522928,3.11122132,4005.0,4004.9,0.17458]
[1733572523424,0.17458,4005.0,4004.9,0.17458]
[1733572523618,0.17459,4004.9,4004.8,0.17458]
[1733572524029,0.17459,4004.7,4004.6,4.3584]
[1733572524431,0.17459,4004.7,4004.6,3.5949]
[1733572524617,0.17459,4004.7,4004.6,3.2078]
[1733572525431,1.47023,4005.2,4004.3,0.374]
[1733572525627,0.1746,4004.4,4004.3,0.374]
[1733572526023,0.43644,4005.1,4004.4,0.1746]
[1733572526024,0.1746,4004.5,4004.4,0.1746]
[1733572526832,0.1746,4004.4,4004.3,0.5486]
[1733572528528,0.43651,4004.4,4003.9,3.88451024]
[1733572528832,0.17463,4003.7,4003.6,3.88451024]
[1733572529033,4.9979,4004.3,4003.5,3.2078]
[1733572529034,0.17464,4003.6,4003.5,3.2078]
[1733572534730,0.17466,4003.1,4003.0,0.4047]
[1733572535940,0.17466,4003.0,4002.9,3.5823]
[1733572536235,0.17466,4003.0,4002.9,3.2078]
[1733572539739,0.657,4003.2,4002.9,3.38247]
[1733572539933,0.3746,4003.5,4002.9,3.2078]
[1733572540134,0.17465,4003.3,4002.9,3.2078]
[1733572540331,0.3746,4003.5,4003.2,0.17465]
[1733572540635,0.17465,4003.4,4003.3,41.5917]
[1733572541028,0.17465,4003.4,4003.3,1.1918]
[1733572545241,0.17466,4003.1,4003.0,40.8]
[1733572545438,0.17466,4003.1,4002.8,3.38247]
[1733572545439,0.17466,4003.0,4002.9,0.3893]
[1733572545638,0.17467,4002.9,4002.8,3.2078]
[1733572545850,0.55447,4002.9,4002.8,44.0078]
[1733572546142,0.55447,4002.9,4002.8,3.2078]
[1733572547238,0.55447,4002.9,4002.8,3.38247]
[1733572547433,0.55447,4002.9,4002.8,3.2078]
[1733572548135,0.55447,4002.9,4002.8,3.38247]
[1733572548731,0.55447,4002.9,4002.8,3.2078]
[1733572554043,2.35000672,4003.4,4002.8,3.2078]
[1733572554243,0.17466,4003.2,4002.9,0.17467]
[1733572554441,0.17466,4003.1,4003.0,0.17466]
[1733572554643,0.17466,4003.1,4002.9,0.3888]
[1733572554841,0.17466,4003.0,4002.9,0.56347]
[1733572556840,1.0521,4003.3,4003.1,0.17466]
[1733572557046,0.657,4003.5,4003.4,0.17464]
[1733572557442,0.83164,4003.5,4003.4,0.17464]
[1733572557642,0.83164,4003.5,4003.3,0.4146]
[1733572557643,0.3783,4003.7,4003.6,0.17464]
[1733572557845,2.19405634,4003.9,4003.8,0.17463]
[1733572557846,1.94430672,4003.9,4003.8,0.17463]
[1733572558039,1.94430672,4003.9,4003.3,4.05903]
[1733572558040,0.7601,4004.5,4003.3,3.6224]
[1733572558243,0.7601,4004.5,4004.2,0.17461]
[1733572558244,0.1746,4004.4,4004.2,0.17461]
[1733572558441,0.1746,4004.4,4004.3,0.98181]
[1733572558751,0.5529,4004.5,4004.3,0.98181]
[1733572559249,5.15210672,4004.7,4004.3,0.98181]
[1733572559250,1.94430672,4004.7,4004.6,0.17459]
[1733572559545,1.94430672,4004.7,4004.4,3.6058]
[1733572559744,2.11889672,4004.7,4004.5,0.1746]
[1733572560044,0.1746,4004.6,4004.4,3.7804]
[1733572561650,0.657,4004.8,4004.5,0.1746]
[1733572561651,0.17459,4004.7,4004.5,0.1746]
[1733572561841,0.657,4004.8,4004.4,3.6058]
[1733572562150,0.1746,4004.6,4004.4,3.7804]
[1733572565241,0.1746,4004.6,4004.4,0.5726]
[1733572566548,0.657,4004.8,4004.3,4.015]
[1733572566749,0.1746,4004.4,4004.3,4.015]
[1733572567245,0.1746,4004.4,4004.3,3.6224]
[1733572567954,1.09347,4004.8,4003.6,3.2078]
[1733572567955,3.2078,4004.6,4003.6,3.2078]
[1733572568255,0.3742,4004.3,4003.7,0.8028]
[1733572568441,0.17461,4004.2,4003.9,0.17462]
[1733572568841,0.17462,4004.1,4003.9,0.17462]
[1733572569047,0.17462,4004.0,4003.8,0.17463]
[1733572569245,0.17463,4003.9,4003.7,0.97743]
[1733572569447,0.3742,4004.3,4003.7,0.8028]
[1733572569651,0.17462,4004.0,4003.8,0.17463]
[1733572569955,0.17463,4003.9,4003.7,0.97743]
[1733572570253,0.17463,4003.8,4003.7,0.8028]
[1733572570550,0.17463,4003.9,4003.7,0.97743]
[1733572570752,0.3742,4004.3,4003.6,3.2078]
[1733572571053,0.17463,4003.7,4003.6,3.2078]
[1733572577662,0.17465,4003.3,4003.2,0.8061]
[1733572578663,0.17465,4003.3,4003.2,0.98075]
[1733572578963,1.4667,4003.6,4003.2,0.98075]
[1733572579158,1.4667,4003.6,4003.2,0.8061]
[1733572579465,1.4667,4003.6,4003.3,0.17465]
[1733572579762,0.17465,4003.4,4003.2,0.8061]
[1733572579960,0.17465,4003.4,4003.2,0.98075]
[1733572580168,1.4667,4003.6,4003.2,0.8061]
[1733572580468,0.17465,4003.3,4003.2,0.8061]
[1733572581666,0.17465,4003.4,4003.2,0.98075]
[1733572582965,3.2078,4004.0,4003.2,0.8061]
[1733572583167,0.17463,4003.7,4003.6,0.17464]
[1733572584161,0.655,4003.9,4003.2,4.69061024]
[1733572584469,0.17464,4003.6,4003.2,4.69061024]
[1733572584666,0.17464,4003.6,4003.5,0.17464]
[1733572585367,0.17462,4003.9,4003.7,0.17463]
[1733572585558,0.17462,4003.9,4003.8,0.7867]
[1733572586365,0.17462,4003.9,4003.8,0.96133]
[1733572586663,0.17462,4003.9,4003.8,0.7867]
[1733572592063,0.17464,4003.5,4003.4,0.17464]
[1733572592767,0.17465,4003.4,4003.3,0.7672]
[1733572592969,0.17465,4003.4,4003.3,0.94185]
[1733572593164,0.17465,4003.4,4003.3,0.7672]
[1733572593767,0.17464,4003.7,4003.5,0.17464]
[1733572593961,0.17464,4003.7,4003.3,0.7672]
[1733572594168,1.54820593,4003.9,4003.3,0.7672]
[1733572594469,0.17462,4004.0,4003.9,0.17462]
[1733572595172,0.4091,4004.4,4004.2,0.17461]
[1733572595173,3.11124132,4004.4,4004.2,0.17461]
[1733572595373,0.1746,4004.4,4004.3,1.33791]
[1733572595673,4.48484725,4004.7,4004.3,1.33791]
[1733572595873,0.1746,4004.4,4004.3,1.33791]
[1733572596169,4.48484725,4004.7,4004.3,1.33791]
[1733572596170,0.1746,4004.5,4004.3,1.33791]
[1733572596675,0.1746,4004.4,4004.3,1.33791]
[1733572597262,0.1746,4004.6,4004.3,4.3711]
[1733572597462,0.1746,4004.5,4004.3,4.5457]
[1733572597672,0.1746,4004.5,4004.4,0.1746]
[1733572597872,3.58664132,4004.7,4004.4,0.1746]
[1733572598072,0.1746,4004.4,4004.3,4.3711]
[1733572598371,0.1746,4004.4,4004.3,3.2078]
[1733572598577,3.11124132,4004.4,4004.3,3.2078]
[1733572598779,0.5839,4004.4,4004.3,3.2078]
[1733572599583,0.17463,4003.9,4003.7,0.17463]
[1733572600074,0.17463,4003.9,4003.6,3.88451024]
[1733572600075,0.61114,4004.2,4003.6,0.17464]
[1733572600277,0.17463,4003.7,4003.5,8.48875024]
[1733572600479,0.4146,4004.2,4003.5,8.31411024]
[1733572600681,0.4146,4004.2,4003.6,0.14028064]
[1733572600883,0.17463,4003.8,4003.6,0.17463]
[1733572601176,0.4146,4004.2,4003.6,0.17463]
[1733572601572,0.17463,4003.8,4003.6,0.17463]
[1733572601781,0.4146,4004.2,4003.6,0.17463]
[1733572601983,0.17463,4003.8,4003.6,0.17463]
[1733572602177,0.4146,4004.2,4003.6,0.17463]
[1733572602377,0.17463,4003.7,4003.6,0.17463]
[1733572602679,0.4146,4004.2,4003.5,8.31411024]
[1733572602680,0.17464,4003.6,4003.5,3.6191]
[1733572602875,0.55454,4003.6,4003.5,3.6191]
[1733572603678,0.55454,4003.6,4003.5,3.2078]
[1733572606884,3.49118132,4003.6,4003.5,3.2078]
[1733572608179,3.49118132,4003.6,4003.2,0.95435]
[1733572608180,0.17465,4003.4,4003.2,4.16215]
[1733572608585,3.31654132,4003.6,4003.2,4.16215]
[1733572608789,0.17465,4003.3,4003.2,4.16215]
[1733572609188,0.17465,4003.3,4003.2,3.9875]
[1733572609585,2.93664132,4003.5,4003.2,3.9875]
[1733572609891,0.17465,4003.3,4003.2,3.9875]
[1733572610780,2.93664132,4003.5,4003.2,4.16215]
[1733572610781,0.17465,4003.4,4003.2,4.16215]
[1733572611182,2.93664132,4003.5,4003.2,4.16215]
[1733572611183,2.93664132,4003.5,4003.2,3.9875]
[1733572611484,2.93664132,4003.5,4003.2,4.16215]
[1733572611485,0.17465,4003.3,4003.2,4.16215]
[1733572611991,0.17465,4003.3,4003.2,3.9875]